fUST/lending_fUST_20250913
["ID","MTS","AMOUNT","RATE_DAILY","PERIOD"]
[385284179,1757743846951,-659.473091,0.00026145,7]
[385284181,1757743846960,-151.0,0.00026145,7]
[385284183,1757743846969,-13701.7307739,0.00026158,2]
[385284185,1757743846978,-41105.1923215,0.00026158,2]
[385284187,1757743846988,-151.758118,0.00026168,7]
[385284189,1757743846997,-151.0,0.00026168,7]
[385284191,1757743847007,-154.145847,0.00026168,7]
[385284193,1757743847016,-237.446576,0.00026168,7]
[385284195,1757743847025,-151.0,0.00026168,7]
[385284197,1757743847035,-151.0,0.00026168,7]
[385284199,1757743847044,-372.220124,0.00026168,7]
[385284201,1757743847054,-372.220124,0.00026168,7]
[385284203,1757743847063,-372.220124,0.00026168,7]
[385284205,1757743847072,-372.220124,0.00026168,7]
[385284207,1757743847082,-151.0,0.00026168,7]
[385284209,1757743847091,-151.0,0.00026168,7]
[385284211,1757743847099,-151.0,0.00026168,7]
[385284213,1757743847108,-210.07458,0.00026168,7]
[385284215,1757743847118,-151.0,0.00026168,7]
[385284217,1757743847128,-151.0,0.00026168,7]
[385284219,1757743847137,-151.0,0.00026168,7]
[385284221,1757743847146,-151.0,0.00026168,7]
[385284223,1757743847155,-449.709396,0.00026168,7]
[385284225,1757743847164,-449.709396,0.00026168,7]
[385284227,1757743847174,-151.0,0.00026168,7]
[385284229,1757743847183,-449.709396,0.00026168,7]
[385284231,1757743847192,-449.709396,0.00026168,7]
[385284233,1757743847201,-151.0,0.00026168,7]
[385284235,1757743847210,-151.0,0.00026168,7]
[385284237,1757743847220,-152.886722,0.00026168,7]
[385284239,1757743847229,-152.886722,0.00026168,7]
[385284241,1757743847238,-152.886722,0.00026168,7]
[385284243,1757743847247,-152.886722,0.00026168,7]
[385284245,1757743847256,-151.0,0.00026168,7]
[385284246,1757743847266,-1146.457076,0.00026168,7]
[385284248,1757743847275,-1146.457076,0.00026168,7]
[385284250,1757743847284,-151.0,0.00026168,7]
[385284252,1757743847293,-1146.457076,0.00026168,7]
[385284254,1757743847302,-1146.457076,0.00026168,7]
[385284256,1757743847311,-2029.66208,0.00026168,7]
[385284258,1757743847320,-2029.66208,0.00026168,7]
[385284260,1757743847330,-151.0,0.00026168,7]
[385284262,1757743847339,-2029.66208,0.00026168,7]
[385284264,1757743847349,-2029.66208,0.00026168,7]
[385284266,1757743847358,-151.0,0.00026168,7]
[385284268,1757743847367,-199.804758,0.00026168,7]
[385284270,1757743847376,-151.0,0.00026168,7]
[385284272,1757743847386,-151.0,0.00026168,7]
[385284274,1757743847396,-386.159562,0.00026168,7]
[385284276,1757743847407,-386.159562,0.00026168,7]
[385284278,1757743847416,-386.159562,0.00026168,7]
[385284280,1757743847426,-386.159558,0.00026168,7]
[385284282,1757743847435,-659.473091,0.00026168,7]
[385284284,1757743847444,-659.473091,0.00026168,7]
[385284286,1757743847454,-151.0,0.00026168,7]
[385284288,1757743847467,-659.473091,0.00026168,7]
[385284290,1757743847476,-151.0,0.00026168,7]
[385284292,1757743847485,-659.473097,0.00026168,7]
[385284294,1757743847494,-151.0,0.00026168,7]
[385284296,1757743847504,-417.15472785,0.00026168,7]
[385284297,1757743847514,-500.0,0.00026173,2]
[385284298,1757743847523,-500.0,0.00026173,2]
[385284299,1757743847532,-1000.0,0.000262,15]
[385284300,1757743847541,-175.99160857,0.0002627,7]
[385284301,1757743847552,-500.0,0.0002627,7]
[385284302,1757743847561,-500.0,0.0002627,2]
[385284303,1757743847570,-389.2045971,0.00026283,2]
[385284304,1757743847580,-389.2045971,0.00026283,2]
[385284305,1757743847589,-389.2045971,0.00026283,2]
[385284306,1757743847598,-389.2045971,0.00026283,2]
[385284307,1757743847608,-389.2045971,0.00026283,2]
[385284308,1757743847617,-27403.4615477,0.0002632,2]
[385284309,1757743847626,-41105.1923215,0.0002632,2]
[385284310,1757743847635,-151.0,0.0002633,7]
[385284311,1757743847644,-151.0,0.0002633,7]
[385284312,1757743847654,-161.443448,0.0002633,7]
[385284313,1757743847663,-372.220124,0.0002633,7]
[385284314,1757743847673,-372.220124,0.0002633,7]
[385284315,1757743847682,-372.220124,0.0002633,7]
[385284316,1757743847691,-372.220124,0.0002633,7]
[385284317,1757743847700,-151.0,0.0002633,7]
[385284318,1757743847709,-151.0,0.0002633,7]
[385284319,1757743847718,-151.0,0.0002633,7]
[385284320,1757743847727,-151.0,0.0002633,7]
[385284321,1757743847737,-151.0,0.0002633,7]
[385284322,1757743847747,-151.0,0.0002633,7]
[385284323,1757743847756,-151.0,0.0002633,7]
[385284324,1757743847765,-151.0,0.0002633,7]
[385284325,1757743847774,-151.0,0.0002633,7]
[385284326,1757743847783,-300.160143,0.0002633,7]
[385284327,1757743847793,-449.709396,0.0002633,7]
[385284328,1757743847803,-449.709396,0.0002633,7]
[385284329,1757743847812,-449.709396,0.0002633,7]
[385284330,1757743847821,-151.0,0.0002633,7]
[385284331,1757743847830,-449.709396,0.0002633,7]
[385284332,1757743847839,-204.600689,0.0002633,7]
[385284333,1757743847848,-449.709396,0.0002633,7]
[385284334,1757743847857,-449.709396,0.0002633,7]
[385284335,1757743847866,-449.709396,0.0002633,7]
[385284336,1757743847875,-449.709395,0.0002633,7]
[385284337,1757743847884,-151.0,0.0002633,7]
[385284338,1757743847893,-151.0,0.0002633,7]
[385284339,1757743847903,-151.0,0.0002633,7]
[385284340,1757743847911,-152.886722,0.0002633,7]
[385284341,1757743847920,-152.886722,0.0002633,7]
[385284342,1757743847929,-152.886722,0.0002633,7]
[385284343,1757743847939,-152.886722,0.0002633,7]
[385284344,1757743847948,-152.886722,0.0002633,7]
[385284345,1757743847957,-152.886722,0.0002633,7]
[385284346,1757743847967,-152.886722,0.0002633,7]
[385284347,1757743847975,-152.886721,0.0002633,7]
[385284348,1757743848055,-151.0,0.0002633,7]
[385284349,1757743848065,-1146.457076,0.0002633,7]
[385284350,1757743848075,-151.0,0.0002633,7]
[385284351,1757743848090,-1146.457076,0.0002633,7]
[385284352,1757743848099,-1146.457076,0.0002633,7]
[385284353,1757743848109,-1146.457076,0.0002633,7]
[385284354,1757743848119,-172.186289,0.0002633,7]
[385284355,1757743848128,-1146.457076,0.0002633,7]
[385284356,1757743848137,-1146.457076,0.0002633,7]
[385284357,1757743848146,-1146.457076,0.0002633,7]
[385284358,1757743848155,-1146.457075,0.0002633,7]
[385284359,1757743848165,-2029.66208,0.0002633,7]
[385284360,1757743848174,-2029.66208,0.0002633,7]
[385284361,1757743848183,-151.0,0.0002633,7]
[385284362,1757743848192,-2029.66208,0.0002633,7]
[385284363,1757743848201,-2029.662077,0.0002633,7]
[385284364,1757743848210,-151.0,0.0002633,7]
[385284365,1757743848220,-54806.9230954,0.0002633,2]
[385284366,1757743848231,-151.0,0.0002634,7]
[385284367,1757743848241,-151.0,0.0002634,7]
[385284368,1757743848250,-151.0,0.0002634,7]
[385284369,1757743848261,-300.37283,0.0002634,7]
[385284370,1757743848270,-151.0,0.0002634,7]
[385284371,1757743848279,-151.0,0.0002634,7]
[385284372,1757743848289,-168.373023,0.0002634,7]
[385284373,1757743848298,-151.0,0.0002634,7]
[385284374,1757743848307,-151.0,0.0002634,7]
[385284375,1757743848316,-285.533945,0.0002634,7]
[385284376,1757743848326,-151.791283,0.0002634,7]
[385284377,1757743848335,-151.0,0.0002634,7]
[385284378,1757743848345,-154.885418,0.0002634,7]
[385284379,1757743848354,-151.0,0.0002634,7]
[385284381,1757743848364,-151.0,0.0002634,7]
[385284382,1757743848373,-151.0,0.0002634,7]
[385284383,1757743848383,-151.0,0.0002634,7]
[385284384,1757743848392,-244.308648,0.0002634,7]
[385284385,1757743848401,-151.856891,0.0002634,7]
[385284386,1757743848411,-151.0,0.0002634,7]
[385284387,1757743848421,-151.0,0.0002634,7]
[385284388,1757743848430,-151.0,0.0002634,7]
[385284389,1757743848439,-153.02553,0.0002634,7]
[385284390,1757743848449,-151.0,0.0002634,7]
[385284391,1757743848458,-151.981322,0.0002634,7]
[385284392,1757743848468,-151.0,0.0002634,7]
[385284393,1757743848482,-151.0,0.0002634,7]
[385284394,1757743848492,-151.0,0.0002634,7]
[385284395,1757743848501,-151.0,0.0002634,7]
[385284396,1757743848513,-151.0,0.0002634,7]
[385284397,1757743848522,-177.882452,0.0002634,7]
[385284398,1757743848532,-151.0,0.0002634,7]
[385284399,1757743848541,-151.0,0.0002634,7]
[385284400,1757743848551,-177.882452,0.0002634,7]
[385284401,1757743848571,-151.0,0.0002634,7]
[385284402,1757743848588,-177.882452,0.0002634,7]
[385284403,1757743848607,-151.0,0.0002634,7]
[385284404,1757743848627,-177.882452,0.0002634,7]
[385284405,1757743848651,-151.0,0.0002634,7]
[385284406,1757743848679,-161.329495,0.0002634,7]
[385284407,1757743848699,-151.0,0.0002634,7]
[385284408,1757743848715,-177.882452,0.0002634,7]
[385284409,1757743848732,-177.882452,0.0002634,7]
[385284410,1757743848751,-177.882452,0.0002634,7]
[385284411,1757743848773,-177.882452,0.0002634,7]
[385284412,1757743848785,-151.0,0.0002634,2]
[385284413,1757743848804,-151.0,0.0002634,2]
[385284414,1757743848821,-151.0,0.0002634,7]
[385284415,1757743848837,-151.0,0.0002634,7]
[385284416,1757743848851,-151.0,0.0002634,7]
[385284417,1757743848867,-151.0,0.0002634,7]
[385284418,1757743848883,-151.0,0.0002634,7]
[385284419,1757743848898,-264.602511,0.0002634,7]
[385284420,1757743848915,-264.602511,0.0002634,7]
[385284421,1757743848930,-264.602511,0.0002634,7]
[385284422,1757743848947,-264.602511,0.0002634,7]
[385284423,1757743848963,-264.602511,0.0002634,7]
[385284424,1757743848979,-264.602511,0.0002634,7]
[385284425,1757743848994,-264.602511,0.0002634,7]
[385284426,1757743849009,-264.602511,0.0002634,7]
[385284427,1757743849025,-157.01168,0.0002634,7]
[385284428,1757743849041,-151.0,0.0002634,7]
[385284429,1757743849056,-372.220124,0.0002634,7]
[385284430,1757743849071,-372.220124,0.0002634,7]
[385284431,1757743849087,-372.220124,0.0002634,7]
[385284432,1757743849102,-372.220132,0.0002634,7]
[385284433,1757743849128,-151.0,0.0002634,7]
[385284434,1757743849144,-151.0,0.0002634,7]
[385284435,1757743849159,-151.0,0.0002634,7]
[385284436,1757743849174,-151.0,0.0002634,7]
[385284437,1757743849189,-217.73838971,0.0002634,7]
[385284438,1757743849205,-151.0,0.0002635,7]
[385284440,1757743849220,-151.0,0.0002635,7]
[385284443,1757743849236,-151.0,0.0002635,7]
[385284445,1757743849251,-151.0,0.0002635,7]
[385284448,1757743849266,-151.0,0.0002635,7]
[385284449,1757743849281,-151.0,0.0002635,7]
[385284450,1757743849296,-151.0,0.0002635,7]
[385284453,1757743849312,-151.0,0.0002635,7]
[385284455,1757743849326,-151.0,0.0002635,7]
[385284458,1757743849341,-151.0,0.0002635,7]
[385284461,1757743849356,-151.0,0.0002635,7]
[385284463,1757743849371,-151.0,0.0002635,7]
[385284466,1757743849386,-151.0,0.0002635,7]
[385284468,1757743849401,-151.0,0.0002635,7]
[385284471,1757743849416,-151.0,0.0002635,7]
[385284483,1757743849431,-151.0,0.0002635,7]
[385284486,1757743849544,-152.790333,0.0002635,7]
[385284488,1757743849556,-151.0,0.0002635,7]
[385284490,1757743849566,-177.882452,0.0002635,7]
[385284492,1757743849576,-151.0,0.0002635,7]
[385284494,1757743849586,-177.882452,0.0002635,7]
[385284496,1757743849595,-214.278696,0.0002635,7]
[385284497,1757743849605,-177.882452,0.0002635,7]
[385284498,1757743849615,-177.882452,0.0002635,7]
[385284499,1757743849625,-151.0,0.0002635,2]
[385284500,1757743849636,-151.0,0.0002635,7]
[385284501,1757743849648,-173.930104,0.0002635,7]
[385284502,1757743849660,-264.602511,0.0002635,7]
[385284503,1757743849670,-264.602511,0.0002635,7]
[385284504,1757743849679,-264.602511,0.0002635,7]
[385284505,1757743849690,-264.602511,0.0002635,7]
[385284506,1757743849700,-151.0,0.0002635,7]
[385284508,1757743849710,-1000.0,0.0002636,2]
[385284510,1757743849720,-562.30123503,0.0002636,2]
[385284511,1757743849731,-173.510086,0.0002636,2]
[385284512,1757743849740,-151.0,0.0002636,2]
[385284513,1757743849750,-151.0,0.0002636,2]
[385284514,1757743849759,-151.0,0.0002636,2]
[385284515,1757743849768,-166.11606898,0.0002636,2]
[385284516,1757743849777,-500.0,0.00026373,2]
[385284517,1757743849787,-541.95171076,0.00026373,2]
[385284518,1757743849796,-500.0,0.00026373,2]
[385284519,1757743849805,-500.98274908,0.00026373,2]
[385284520,1757743849814,-501.81850071,0.00026373,2]
[385284521,1757743849825,-500.0,0.00026373,2]
[385284522,1757743849838,-409.0,0.00026386,2]
[385284523,1757743849849,-1307.12,0.000264,7]
[385284524,1757743849858,-200.43811704,0.00026468,7]
[385284525,1757743849867,-500.0,0.00026544,7]
[385284526,1757743849877,-500.0,0.00026544,2]
[385284527,1757743849887,-391.2556725,0.00026721,2]
[385284528,1757743849896,-1000.0,0.00026721,2]
[385284529,1757743849905,-360.32614467,0.00026767,2]
[385284530,1757743849916,-160.0,0.00026787,3]
[385284531,1757743849925,-500.0,0.00026818,7]
[385284532,1757743849935,-500.0,0.00026818,2]
[385284533,1757743849944,-729.38528535,0.00026824,2]
[385284534,1757743849953,-500.0,0.00026858,2]
[385284535,1757743849962,-233.1568031,0.000269,7]
[385284536,1757743849971,-500.0,0.00026913,2]
[385284537,1757743849981,-1000.0,0.00026921,2]
[385284538,1757743849991,-1000.0,0.00026921,2]
[385284539,1757743850000,-551.3237218,0.00026921,2]
[385284540,1757743850009,-168.0,0.00026951,2]
[385284541,1757743850018,-500.0,0.00026964,2]
[385284542,1757743850027,-500.0,0.00026998,2]
[385284543,1757743850036,-821.05585734,0.00027,10]
[385284544,1757743850045,-2139.86985211,0.0002707,2]
[385284545,1757743850054,-500.0,0.00027092,7]
[385284546,1757743850063,-500.0,0.00027092,2]
[385284547,1757743850073,-500.0,0.00027098,2]
[385284548,1757743850082,-500.0,0.00027131,2]
[385284549,1757743850091,-500.0,0.00027172,2]
[385284550,1757743850100,-151.0,0.000272,19]
[385284551,1757743850110,-194.793766,0.00027201,7]
[385284552,1757743850119,-177.882452,0.00027201,7]
[385284553,1757743850129,-151.0,0.00027201,7]
[385284554,1757743850141,-151.0,0.00027201,7]
[385284555,1757743850151,-177.882452,0.00027201,7]
[385284556,1757743850161,-177.882452,0.00027201,7]
[385284557,1757743850170,-177.882452,0.00027201,7]
[385284558,1757743850179,-273.987629,0.00027201,2]
[385284559,1757743850188,-151.0,0.00027201,7]
[385284560,1757743850198,-264.602511,0.00027201,7]
[385284561,1757743850207,-264.602511,0.00027201,7]
[385284562,1757743850216,-264.602511,0.00027201,7]
[385284563,1757743850225,-264.602511,0.00027201,7]
[385284564,1757743850234,-151.0,0.00027217,7]
[385284565,1757743850243,-151.0,0.00027217,7]
[385284566,1757743850253,-151.0,0.00027217,7]
[385284567,1757743850262,-151.0,0.00027217,7]
[385284568,1757743850272,-151.0,0.00027217,7]
[385284569,1757743850281,-151.0,0.00027217,7]
[385284570,1757743850290,-151.0,0.00027217,7]
[385284571,1757743850299,-151.0,0.00027217,7]
[385284572,1757743850309,-151.0,0.00027242,7]
[385284573,1757743850318,-151.0,0.00027242,7]
[385284574,1757743850327,-151.0,0.00027242,7]
[385284575,1757743850336,-151.0,0.00027242,7]
[385284576,1757743850346,-389.2045971,0.00027242,2]
[385284577,1757743850356,-389.2045971,0.00027242,2]
[385284578,1757743850365,-389.2045971,0.00027242,2]
[385284579,1757743850374,-389.2045971,0.00027242,2]
[385284580,1757743850383,-389.2045971,0.00027242,2]
[385284581,1757743850392,-389.2045971,0.00027242,2]
[385284582,1757743850402,-389.2045971,0.00027242,2]
[385284583,1757743850411,-389.2045971,0.00027242,2]
[385284584,1757743850421,-389.2045971,0.00027242,2]
[385284585,1757743850431,-389.2045971,0.00027242,2]
[385284586,1757743850441,-389.2045971,0.00027242,2]
[385284587,1757743850450,-389.2045971,0.00027242,2]
[385284588,1757743850460,-389.2045971,0.00027242,2]
[385284589,1757743850472,-389.2045971,0.00027242,2]
[385284590,1757743850483,-389.2045971,0.00027242,2]
[385284591,1757743850493,-389.2045971,0.00027242,2]
[385284592,1757743850502,-389.2045971,0.00027242,2]
[385284593,1757743850512,-2264.10087164,0.00027252,2]
[385284594,1757743850522,-250.0,0.00027252,2]
[385284595,1757743850531,-250.0,0.00027252,2]
[385284596,1757743850541,-250.0,0.00027252,2]
[385284597,1757743850550,-250.0,0.00027252,2]
[385284598,1757743850560,-250.0,0.00027252,2]
[385284599,1757743850569,-250.0,0.00027252,2]
[385284600,1757743850578,-258.64409182,0.00027252,2]
[385284601,1757743850587,-1500.0,0.00027268,2]
[385284602,1757743850596,-389.2045971,0.00027271,2]
[385284603,1757743850605,-389.2045971,0.00027271,2]
[385284604,1757743850614,-389.2045971,0.00027271,2]
[385284605,1757743850623,-389.2045971,0.00027271,2]
[385284606,1757743850632,-822.8400322,0.00027271,2]
[385284607,1757743850643,-500.0,0.00027273,2]
[385284608,1757743850651,-151.0,0.00027291,7]
[385284609,1757743850661,-151.0,0.00027291,7]
[385284610,1757743850670,-243.621398,0.00027291,7]
[385284611,1757743850679,-151.0,0.00027291,7]
[385284612,1757743850689,-151.0,0.00027291,7]
[385284613,1757743850698,-151.0,0.00027291,7]
[385284614,1757743850707,-161.823539,0.00027291,7]
[385284615,1757743850717,-151.0,0.00027291,7]
[385284616,1757743850797,-151.0,0.00027291,7]
[385284617,1757743850807,-151.0,0.00027291,7]
[385284618,1757743850817,-151.0,0.00027291,7]
[385284619,1757743850826,-151.0,0.00027291,7]
[385284620,1757743850835,-151.0,0.00027291,7]
[385284621,1757743850845,-151.0,0.00027291,7]
[385284622,1757743850854,-151.0,0.00027291,7]
[385284623,1757743850864,-151.0,0.00027291,7]
[385284624,1757743850873,-219.107081,0.00027291,7]
[385284625,1757743850883,-151.0,0.00027291,7]
[385284626,1757743850893,-151.0,0.00027291,7]
[385284627,1757743850903,-151.0,0.00027291,7]
[385284628,1757743850912,-151.0,0.00027291,7]
[385284629,1757743850922,-151.0,0.00027291,7]
[385284630,1757743850931,-151.0,0.00027291,7]
[385284631,1757743850941,-173.122894,0.00027291,7]
[385284632,1757743850950,-181.295845,0.00027291,7]
[385284633,1757743850960,-177.882452,0.00027291,7]
[385284634,1757743850971,-151.0,0.00027291,7]
[385284635,1757743850980,-151.0,0.00027291,7]
[385284636,1757743850990,-177.882452,0.00027291,7]
[385284637,1757743850999,-177.882452,0.00027291,7]
[385284638,1757743851008,-177.88246,0.00027291,7]
[385284639,1757743851018,-151.0,0.00027291,7]
[385284640,1757743851027,-264.602511,0.00027291,7]
[385284641,1757743851036,-264.602511,0.00027291,7]
[385284642,1757743851046,-264.602511,0.00027291,7]
[385284643,1757743851056,-264.602517,0.00027291,7]
[385284644,1757743851066,-151.0,0.000273,10]
[385284645,1757743851076,-155.864845,0.00027301,7]
[385284646,1757743851085,-213.063548,0.00027301,7]
[385284647,1757743851095,-500.0,0.00027301,2]
[385284648,1757743851105,-2347.87260389,0.00027307,2]
[385284649,1757743851114,-151.823626,0.00027311,7]
[385284650,1757743851124,-151.0,0.00027311,7]
[385284651,1757743851134,-151.626849,0.00027311,7]
[385284652,1757743851143,-152.138765,0.00027311,7]
[385284653,1757743851152,-178.23891,0.00027311,7]
[385284654,1757743851162,-178.23891,0.00027311,7]
[385284655,1757743851171,-178.23891,0.00027311,7]
[385284656,1757743851181,-178.23891,0.00027311,7]
[385284657,1757743851190,-151.0,0.00027311,7]
[385284658,1757743851200,-151.0,0.00027311,7]
[385284659,1757743851209,-151.0,0.00027311,7]
[385284660,1757743851218,-151.0,0.00027311,7]
[385284661,1757743851227,-151.0,0.00027311,7]
[385284662,1757743851237,-151.0,0.00027311,7]
[385284663,1757743851246,-151.0,0.00027311,7]
[385284664,1757743851256,-155.955929,0.00027311,7]
[385284665,1757743851265,-151.0,0.00027311,7]
[385284666,1757743851275,-151.0,0.00027311,7]
[385284667,1757743851284,-151.0,0.00027311,7]
[385284668,1757743851294,-151.0,0.00027311,7]
[385284669,1757743851304,-151.0,0.00027311,7]
[385284670,1757743851314,-151.622724,0.00027321,7]
[385284671,1757743851323,-178.23891,0.00027321,7]
[385284672,1757743851333,-178.23891,0.00027321,7]
[385284673,1757743851343,-178.23891,0.00027321,7]
[385284674,1757743851353,-178.23891,0.00027321,7]
[385284675,1757743851362,-151.0,0.00027321,7]
[385284676,1757743851373,-151.0,0.00027321,7]
[385284677,1757743851382,-151.0,0.00027321,7]
[385284678,1757743851392,-151.0,0.00027321,7]
[385284679,1757743851402,-151.0,0.00027321,7]
[385284680,1757743851411,-151.0,0.00027321,7]
[385284681,1757743851421,-151.0,0.00027321,7]
[385284682,1757743851431,-151.0,0.00027321,7]
[385284683,1757743851440,-151.0,0.00027321,7]
[385284684,1757743851449,-151.0,0.00027321,7]
[385284685,1757743851459,-151.0,0.00027321,7]
[385284686,1757743851473,-151.0,0.00027321,7]
[385284687,1757743851483,-500.0,0.00027333,2]
[385284688,1757743851493,-1913.97058573,0.00027362,2]
[385284689,1757743851503,-500.0,0.00027366,7]
[385284690,1757743851513,-500.0,0.00027366,2]
[385284691,1757743851522,-501.17023342,0.00027373,2]
[385284692,1757743851532,-500.0,0.00027373,2]
[385284693,1757743851543,-500.0,0.00027373,2]
[385284694,1757743851552,-500.0,0.00027373,2]
[385284695,1757743851562,-500.0,0.00027373,2]
[385284696,1757743851571,-151.34575888,0.00027373,2]
[385284697,1757743851580,-178.23891,0.0002739,7]
[385284698,1757743851590,-178.23891,0.0002739,7]
[385284699,1757743851599,-178.23891,0.0002739,7]
[385284700,1757743851608,-178.23891,0.0002739,7]
[385284701,1757743851618,-178.23891,0.0002739,7]
[385284702,1757743851627,-178.23891,0.0002739,7]
[385284703,1757743851637,-178.23891,0.0002739,7]
[385284704,1757743851647,-178.23891,0.0002739,7]
[385284705,1757743851656,-151.0,0.0002739,7]
[385284706,1757743851666,-151.0,0.0002739,7]
[385284707,1757743851675,-151.0,0.0002739,7]
[385284708,1757743851685,-151.0,0.0002739,7]
[385284709,1757743851695,-151.0,0.0002739,7]
[385284710,1757743851704,-151.0,0.0002739,7]
[385284711,1757743851715,-151.0,0.0002739,7]
[385284712,1757743851725,-151.0,0.0002739,7]
[385284713,1757743851735,-151.0,0.0002739,7]
[385284714,1757743851744,-151.0,0.0002739,7]
[385284715,1757743851754,-151.0,0.0002739,7]
[385284716,1757743851763,-151.0,0.0002739,7]
[385284717,1757743851772,-151.0,0.0002739,7]
[385284718,1757743851781,-151.0,0.0002739,7]
[385284719,1757743851791,-151.0,0.0002739,7]
[385284720,1757743851800,-151.0,0.0002739,7]
[385284721,1757743851809,-151.0,0.0002739,7]
[385284722,1757743851819,-151.0,0.0002739,7]
[385284723,1757743851828,-151.0,0.0002739,7]
[385284724,1757743851837,-299.219163,0.0002739,7]
[385284725,1757743851846,-151.0,0.0002739,7]
[385284726,1757743851855,-151.0,0.0002739,7]
[385284727,1757743851864,-151.0,0.0002739,7]
[385284728,1757743851874,-151.0,0.0002739,7]
[385284729,1757743851947,-154.891002,0.0002739,7]
[385284730,1757743851962,-151.0,0.0002739,7]
[385284731,1757743851971,-151.0,0.0002739,7]
[385284732,1757743851981,-151.0,0.0002739,7]
[385284733,1757743851991,-151.0,0.0002739,7]
[385284734,1757743852000,-156.347129,0.0002739,7]
[385284735,1757743852010,-159.240952,0.00027397,2]
[385284736,1757743852019,-200.0,0.00027397,5]
[385284737,1757743852028,-3698.8,0.000274,7]
[385284738,1757743852038,-43215.88,0.000274,7]
[385284739,1757743852047,-151.0,0.000274,13]
[385284740,1757743852056,-178.23891,0.000274,7]
[385284741,1757743852065,-178.23891,0.000274,7]
[385284742,1757743852074,-178.23891,0.000274,7]
[385284743,1757743852083,-178.23890684,0.000274,7]
[385284744,1757743852093,-151.0,0.000274,7]
[385284745,1757743852102,-203.469089,0.000274,7]
[385284746,1757743852111,-500.0,0.00027403,2]
[385284747,1757743852120,-500.0,0.00027434,2]
[385284748,1757743852130,-168.0,0.0002744,2]
[385284749,1757743852139,-1500.0,0.00027468,5]
[385284750,1757743852148,-522.62248946,0.00027468,5]
[385284751,1757743852157,-290.86567017,0.00027471,7]
[385284752,1757743852167,-500.0,0.00027471,7]
[385284753,1757743852177,-157.0,0.00027471,7]
[385284754,1757743852186,-157.0,0.00027471,7]
[385284755,1757743852195,-500.0,0.00027471,7]
[385284756,1757743852205,-157.0,0.00027471,7]
[385284757,1757743852214,-500.0,0.00027471,7]
[385284758,1757743852223,-500.0,0.00027471,7]
[385284759,1757743852232,-157.0,0.00027471,7]
[385284760,1757743852242,-157.0,0.00027471,7]
[385284761,1757743852251,-233.1568031,0.00027472,7]
[385284762,1757743852260,-150.52828701,0.00027481,14]
[385284763,1757743852270,-1307.12,0.000275,7]
[385284764,1757743852279,-161.7920066,0.00027516,30]
[385284765,1757743852289,-310.3616017,0.00027516,30]
[385284766,1757743852298,-152.3601325,0.00027516,30]
[385284767,1757743852307,-161.7920066,0.00027516,30]
[385284768,1757743852317,-161.7920066,0.00027516,30]
[385284769,1757743852326,-161.7920066,0.00027516,30]
[385284770,1757743852335,-406.1734373,0.00027516,30]
[385284771,1757743852344,-1197.5687299,0.00027516,30]
[385284772,1757743852354,-295.821047,0.00027516,30]
[385284773,1757743852363,-584.4874247,0.00027516,30]
[385284774,1757743852372,-153.0,0.00027545,30]
[385284775,1757743852381,-160.0,0.00027556,4]
[385284776,1757743852391,-368.00735716,0.00027556,2]